bitfinex-derivatives/quotes_ETHF0:USTF0_20241230
["timestamp","ask_amount","ask_price","bid_price","bid_amount"]
[1735575007525,3.4868,3328.7,3328.6,0.30101]
[1735575007821,3.7878,3328.7,3328.6,41.10101]
[1735575008015,3.4868,3328.7,3328.6,40.8]
[1735575008217,3.4868,3328.7,3327.9,0.75269]
[1735575008421,0.30101,3328.6,3328.5,0.30101]
[1735575008921,0.75255,3328.5,3327.6,1.7701]
[1735575009218,3.2078,3328.2,3327.2,10.19415245]
[1735575009423,3.2078,3328.2,3327.2,50.99415245]
[1735575009617,1.8012,3328.4,3327.6,3.2078]
[1735575009825,0.30105,3328.2,3328.0,0.30106]
[1735575010119,2.10223,3328.4,3327.7,1.8195]
[1735575010321,3.2078,3328.6,3327.7,1.8195]
[1735575010515,3.2078,3328.6,3328.5,0.30102]
[1735575010910,7.91512753,3328.6,3328.5,0.30102]
[1735575011519,4.70732753,3328.6,3328.5,3.50882]
[1735575011816,4.70160667,3328.6,3328.5,44.30882]
[1735575012020,5.88415942,3328.8,3328.7,0.301]
[1735575012210,10.25932319,3329.8,3328.7,1.718]
[1735575012211,2.35754647,3329.1,3328.7,1.718]
[1735575012412,2.35754647,3329.1,3329.0,3.50877]
[1735575013630,0.30095,3329.3,3329.2,0.30095]
[1735575014015,2.35754647,3329.6,3329.0,3.2078]
[1735575014217,0.30094,3329.4,3329.3,0.30094]
[1735575014411,2.65846647,3329.6,3329.4,0.30093]
[1735575014623,0.30093,3329.5,3329.4,0.30093]
[1735575015120,2.35754647,3329.6,3329.0,3.2078]
[1735575015422,0.30094,3329.4,3329.2,0.30094]
[1735575015724,2.65846647,3329.6,3329.4,0.30093]
[1735575016116,2.65846647,3329.6,3329.0,3.96024]
[1735575016310,6.96291971,3329.8,3329.0,3.96024]
[1735575016311,2.35754647,3329.7,3329.0,3.96024]
[1735575016511,2.35754647,3329.7,3329.6,0.30092]
[1735575017227,2.35754647,3329.7,3329.2,0.30095]
[1735575017414,2.10672,3329.6,3329.0,3.2078]
[1735575017611,2.35754647,3329.7,3329.1,0.75241]
[1735575017813,5.25691971,3329.8,3329.0,3.2078]
[1735575017814,1.7206,3329.8,3329.2,0.75237]
[1735575018020,1.7206,3329.8,3329.5,0.30092]
[1735575018223,0.30091,3329.7,3329.5,0.30092]
[1735575018422,1.7206,3329.8,3329.3,40.8]
[1735575018622,2.0215,3329.8,3329.6,0.30091]
[1735575019422,2.0215,3329.8,3329.2,0.30095]
[1735575019731,0.30091,3329.7,3329.6,0.30091]
[1735575020025,2.0215,3329.8,3329.6,0.30091]
[1735575020518,2.0215,3329.8,3329.1,40.8]
[1735575020722,2.0215,3329.8,3329.7,0.30091]
[1735575021718,1.7206,3329.8,3329.2,0.75239]
[1735575021921,0.30091,3329.7,3329.6,0.30091]
[1735575022125,1.7206,3329.8,3329.2,0.75239]
[1735575022323,1.7206,3329.8,3329.7,0.30091]
[1735575022926,4.07814647,3329.8,3329.7,0.30091]
[1735575023315,2.35754647,3329.8,3329.7,0.30091]
[1735575023521,2.35754647,3329.8,3329.7,4.01001143]
[1735575024028,2.35754647,3329.8,3329.7,44.81001143]
[1735575024420,1.54436,3330.1,3330.0,0.30088]
[1735575025126,1.54436,3330.1,3330.0,2.59298143]
[1735575025322,1.54436,3330.1,3330.0,5.80078143]
[1735575026227,1.54436,3330.1,3330.0,10.80078143]
[1735575026527,1.54436,3330.1,3330.0,51.84684474]
[1735575027124,1.54436,3330.1,3330.0,46.84684474]
[1735575027521,1.54436,3330.1,3330.0,46.60078143]
[1735575027722,1.54436,3330.1,3330.0,44.30868]
[1735575028024,1.54436,3330.1,3330.0,46.60078143]
[1735575028818,1.54436,3330.1,3330.0,44.30868]
[1735575029122,1.54436,3330.1,3330.0,3.50868]
[1735575029926,1.54436,3330.1,3330.0,3.2078]
[1735575030121,1.84523,3330.1,3330.0,3.2078]
[1735575030928,1.54436,3330.1,3329.6,1.417]
[1735575031127,1.54436,3330.1,3329.8,0.30088]
[1735575031128,0.30089,3329.9,3329.8,0.30088]
[1735575031922,1.54436,3330.1,3329.6,1.417]
[1735575032130,1.54436,3330.1,3330.0,0.30088]
[1735575033921,1.54436,3330.1,3329.6,1.417]
[1735575034120,0.30089,3330.0,3329.9,0.30089]
[1735575034532,0.30088,3330.0,3329.7,0.30091]
[1735575034732,0.30089,3329.9,3329.8,0.30089]
[1735575034921,3.4814,3329.9,3329.8,0.30089]
[1735575035735,3.78229,3329.9,3329.8,0.30089]
[1735575036034,0.30093,3329.5,3329.4,0.30093]
[1735575036225,0.30096,3329.1,3329.0,3.2078]
[1735575036431,2.95018397,3329.2,3328.5,47.78635245]
[1735575036631,3.5816,3329.1,3328.8,0.30098]
[1735575036928,0.30097,3329.0,3328.5,47.78635245]
[1735575037131,0.30097,3329.0,3328.9,0.30098]
[1735575038132,0.30097,3329.0,3328.5,40.8]
[1735575038338,2.95018397,3328.8,3328.5,40.8]
[1735575038533,0.30101,3328.6,3328.5,40.8]
[1735575038841,6.15798397,3328.8,3328.5,40.8]
[1735575039031,0.30101,3328.6,3328.5,40.8]
[1735575039239,6.15798397,3328.8,3328.5,40.8]
[1735575039531,0.30101,3328.7,3328.5,0.30101]
[1735575039728,1.7348,3328.6,3328.5,0.30101]
[1735575040031,2.03581,3328.6,3328.5,41.10101]
[1735575040230,0.30102,3328.5,3328.0,3.2078]
[1735575040430,1.7348,3328.6,3328.0,3.2078]
[1735575040630,7.94938397,3328.4,3327.8,0.30107]
[1735575040837,0.30107,3328.0,3327.8,0.30107]
[1735575041132,1.7445,3328.3,3327.3,45.4228]
[1735575041327,0.30109,3327.7,3327.5,0.3011]
[1735575041526,1.7445,3328.3,3327.3,45.72392]
[1735575041527,2.95018397,3328.0,3327.3,45.72392]
[1735575041726,6.15798397,3328.0,3327.3,40.8]
[1735575041934,3.2078,3328.0,3327.3,44.0078]
[1735575042129,3.2078,3328.0,3327.6,0.3011]
[1735575042334,3.2078,3328.0,3327.5,0.3011]
[1735575042537,0.30109,3327.7,3327.5,0.3011]
[1735575042738,0.30108,3327.8,3327.3,44.0078]
[1735575043033,1.694,3327.7,3327.3,44.0078]
[1735575043238,1.694,3327.7,3327.5,0.3011]
[1735575043436,1.694,3327.7,3327.3,40.8]
[1735575043644,0.30112,3327.4,3327.3,40.8]
[1735575044042,1.694,3327.7,3327.5,0.30111]
[1735575044043,1.6835,3327.6,3327.5,0.30111]
[1735575044743,1.6835,3327.6,3327.4,0.30111]
[1735575044744,1.9846,3327.6,3327.4,0.30111]
[1735575044941,1.6835,3327.6,3327.5,0.30111]
[1735575045143,0.30112,3327.4,3327.3,40.8]
[1735575045446,7.84148397,3327.6,3326.9,3.2078]
[1735575045746,0.30115,3327.0,3326.9,3.2078]
[1735575046243,1.6756,3327.5,3326.9,3.2078]
[1735575046445,1.6756,3327.5,3326.9,3.50896]
[1735575046747,0.30113,3327.3,3327.1,0.30114]
[1735575047151,1.6756,3327.5,3326.9,3.2078]
[1735575047442,4.8913,3327.6,3327.0,0.75289]
[1735575047646,4.8913,3327.6,3327.5,0.30111]
[1735575047847,1.6835,3327.6,3327.5,0.30111]
[1735575048254,1.9846,3327.6,3327.5,40.8]
[1735575048743,1.6835,3327.6,3327.5,41.10111]
[1735575049133,1.6835,3327.6,3327.5,0.30111]
[1735575049336,1.6835,3327.6,3327.4,0.30111]
[1735575049536,1.6835,3327.6,3327.5,40.8]
[1735575049747,1.6835,3327.6,3327.5,41.10111]
[1735575050641,1.6835,3327.6,3327.5,40.8]
[1735575050942,1.6835,3327.6,3327.5,41.10111]
[1735575051841,1.9846,3327.6,3327.5,40.8]
[1735575052042,1.9846,3327.6,3327.5,41.10111]
[1735575053141,1.9846,3327.6,3327.5,40.8]
[1735575054041,0.30111,3327.5,3327.3,0.30112]
[1735575054248,0.30112,3327.4,3327.3,0.30112]
[1735575054442,0.30112,3327.4,3327.3,41.10112]
[1735575054842,1.6835,3327.6,3327.3,41.10112]
[1735575054843,0.30111,3327.5,3327.4,0.30111]
[1735575055351,1.99509,3327.7,3327.6,0.3011]
[1735575055644,1.9951,3327.7,3327.5,0.3011]
[1735575055844,0.3011,3327.6,3327.5,0.3011]
[1735575056047,1.694,3327.7,3327.3,44.0078]
[1735575056444,0.30116,3326.9,3326.8,4.6238]
[1735575056644,5.50288976,3327.2,3326.6,1.8192]
[1735575056849,0.30122,3326.3,3326.2,0.30122]
[1735575057548,0.30121,3326.4,3326.3,0.30121]
[1735575057748,0.30124,3326.0,3325.9,3.2078]
[1735575058051,0.30127,3325.7,3325.6,6.98635245]
[1735575058351,3.2078,3325.7,3325.0,44.0078]
[1735575058549,3.2078,3325.7,3325.6,0.30128]
[1735575058744,1.695,3326.4,3325.4,3.2078]
[1735575058939,0.30121,3326.4,3326.2,0.30122]
[1735575059544,0.30121,3326.4,3326.3,0.30122]
[1735575059945,0.30122,3326.3,3325.9,1.6488]
[1735575060246,0.30122,3326.3,3326.2,0.30122]
[1735575060848,0.30123,3326.2,3326.1,0.30123]
[1735575061047,2.95880603,3326.3,3325.8,3.2078]
[1735575061244,2.95880603,3326.3,3325.2,1.416]
[1735575061245,0.30127,3325.8,3325.4,4.8566]
[1735575061445,2.95880603,3326.3,3325.4,4.8566]
[1735575061649,0.30125,3326.0,3325.8,0.30126]
[1735575061855,0.30127,3325.8,3325.6,0.30127]
[1735575062057,3.2078,3326.2,3325.7,0.30127]
[1735575062243,0.30126,3325.8,3325.7,0.30127]
[1735575062448,3.2078,3326.2,3325.8,0.30126]
[1735575062752,3.2078,3326.2,3325.7,0.30126]
[1735575062753,0.30126,3325.9,3325.7,0.30126]
[1735575063056,0.30127,3325.8,3325.6,0.30127]
[1735575063251,0.30127,3325.8,3325.4,4.8566]
[1735575063448,0.30128,3325.6,3325.5,0.30129]
[1735575063748,0.30129,3325.5,3325.4,4.8566]
[1735575063953,2.95880603,3325.9,3325.4,4.8566]
[1735575064154,0.30129,3325.5,3325.4,3.2078]
[1735575064842,0.30132,3325.2,3325.0,1.777]
[1735575065047,3.2078,3325.6,3325.0,2.07833]
[1735575065246,0.30132,3325.2,3325.1,40.8]
[1735575067743,2.08002,3325.2,3325.1,40.8]
[1735575068349,1.7787,3325.2,3324.8,3.2078]
[1735575068545,0.30134,3324.9,3324.8,3.2078]
[1735575068752,0.30134,3324.9,3324.8,44.0078]
[1735575068957,0.30132,3325.2,3325.0,0.30133]
[1735575069151,2.95880603,3325.3,3324.9,0.30134]
[1735575069454,2.95880603,3325.3,3324.8,44.0078]
[1735575069455,0.30134,3324.9,3324.8,44.0078]
[1735575069655,2.95880603,3325.3,3325.0,0.30133]
[1735575069852,0.30132,3325.1,3325.0,0.30133]
[1735575070249,0.30132,3325.2,3325.0,0.30133]
[1735575070450,3.26011603,3325.3,3325.1,0.30132]
[1735575070647,2.95880603,3325.3,3324.8,44.0078]
[1735575070861,0.30132,3325.2,3325.0,0.30133]
[1735575071055,0.30132,3325.1,3325.0,0.30133]
[1735575071258,2.95880603,3325.3,3324.9,0.30134]
[1735575071452,2.95880603,3325.3,3324.8,44.0078]
[1735575071453,0.30132,3325.2,3325.0,0.30133]
[1735575071654,4.71380603,3325.7,3324.8,44.0078]
[1735575071851,0.30133,3325.1,3324.8,44.0078]
[1735575072056,0.30133,3325.0,3324.8,44.30915]
[1735575072256,0.30128,3325.7,3325.5,0.30128]
[1735575072458,1.6909,3325.8,3325.2,3.2078]
[1735575072661,1.6909,3325.8,3325.7,0.30127]
[1735575072958,3.2078,3326.0,3325.9,0.30125]
[1735575073160,1.6998,3326.3,3325.9,0.30125]
[1735575073355,3.2078,3326.4,3326.0,1.7725]
[1735575073557,3.2078,3326.4,3326.3,0.30122]
[1735575073967,3.2078,3326.4,3326.0,1.7725]
[1735575074168,3.2078,3326.4,3325.6,3.2078]
[1735575074364,0.30127,3325.8,3325.6,3.2078]
[1735575074568,0.75305,3326.3,3325.5,0.30128]
[1735575074569,0.30127,3325.7,3325.5,0.30128]
[1735575074776,2.95880603,3325.7,3325.2,3.2078]
[1735575074967,1.6992,3325.6,3325.2,3.2078]
[1735575075676,0.30129,3325.5,3325.4,0.3013]
[1735575075971,1.6992,3325.6,3325.4,0.3013]
[1735575076172,1.6992,3325.6,3325.3,0.3013]
[1735575076173,0.3013,3325.4,3325.3,0.3013]
[1735575076377,1.6992,3325.6,3325.3,0.3013]
[1735575076677,1.6992,3325.6,3325.5,0.30129]
[1735575076872,6.7368,3326.0,3325.2,3.96108]
[1735575077073,1.7837,3326.2,3326.1,0.30123]
[1735575077373,3.2078,3326.4,3326.3,0.30122]
[1735575077571,3.5712,3326.8,3326.7,0.30118]
[1735575077764,1.7837,3326.8,3326.7,0.30118]
[1735575077970,1.7837,3326.8,3326.1,1.6886]
[1735575078174,1.7837,3326.8,3326.7,0.30118]
[1735575078672,3.2078,3327.0,3326.9,0.30116]
[1735575079477,3.2078,3327.0,3326.4,0.3012]
[1735575079675,2.95880603,3326.8,3326.0,3.2078]
[1735575080176,1.6805,3326.7,3326.1,0.30123]
[1735575080378,1.6805,3326.7,3326.0,3.2078]
[1735575080671,1.6805,3326.7,3326.6,0.30119]
[1735575080880,1.98168,3326.7,3326.5,0.30119]
[1735575081676,1.98168,3326.7,3326.0,3.2078]
[1735575081677,1.6805,3326.7,3326.0,3.2078]
[1735575081976,3.2078,3327.0,3326.9,0.30116]
[1735575083179,1.6805,3327.3,3326.9,3.2078]
[1735575083377,0.30112,3327.5,3327.0,0.30115]
[1735575083575,3.2078,3327.6,3326.9,3.2078]
[1735575083774,3.2078,3327.6,3327.5,0.30111]
[1735575084281,4.66670603,3328.0,3327.5,0.30111]
[1735575084282,2.65859647,3328.2,3327.5,0.75277]
[1735575084472,4.04274647,3328.2,3327.5,0.75277]
[1735575084673,4.04274647,3328.2,3327.4,3.2078]
[1735575084876,2.95880603,3328.0,3327.4,3.2078]
[1735575085073,2.95880603,3328.0,3327.6,0.3011]
[1735575085074,0.30108,3327.8,3327.6,0.3011]
[1735575085377,1.98625,3328.2,3328.0,0.30106]
[1735575085784,1.98625,3328.2,3327.4,4.8761]
[1735575085983,0.30106,3328.0,3327.8,0.30108]
[1735575087383,1.6852,3328.2,3327.5,0.30111]
[1735575087384,0.30106,3328.1,3327.5,0.30111]
[1735575087584,1.6852,3328.2,3327.4,3.2078]
[1735575087785,0.30108,3327.8,3327.6,0.30109]
[1735575088085,1.6852,3328.2,3327.4,3.2078]
[1735575088382,0.30107,3328.0,3327.8,0.30108]
[1735575088583,1.6852,3328.2,3327.4,3.2078]
[1735575088886,3.2078,3327.9,3327.4,3.2078]
[1735575089089,3.2078,3327.9,3326.9,3.2078]
[1735575089090,2.95880603,3327.6,3326.9,3.2078]
[1735575089282,0.30115,3327.0,3326.9,3.2078]
[1735575090089,1.6931,3327.1,3327.0,0.30115]
[1735575090382,1.99424,3327.1,3327.0,0.30115]
[1735575090584,1.6931,3327.1,3327.0,0.30115]
[1735575090787,1.99424,3327.1,3326.9,0.30116]
[1735575091082,1.6931,3327.1,3326.5,3.2078]
[1735575091277,0.30116,3327.0,3326.9,0.30116]
[1735575091483,0.30118,3326.7,3326.6,0.30119]
[1735575091676,0.30117,3326.9,3326.5,3.2078]
[1735575091881,1.6931,3327.1,3326.9,0.30116]
[1735575091882,0.30116,3327.0,3326.9,0.30116]
[1735575092083,1.6931,3327.1,3326.5,3.2078]
[1735575092084,1.99425,3327.1,3327.0,0.30115]
[1735575092286,1.6931,3327.1,3326.5,3.2078]
[1735575092580,0.30118,3326.8,3326.6,0.30119]
[1735575092793,0.30118,3326.7,3326.6,0.30119]
[1735575093279,0.30117,3326.9,3326.8,0.30117]
[1735575093589,0.30112,3327.4,3327.3,0.30112]
[1735575093791,3.2078,3327.5,3326.8,1.414]
[1735575093792,3.50891,3327.5,3327.0,0.30115]
[1735575093980,3.2078,3327.5,3327.3,0.30112]
[1735575094184,3.50891,3327.5,3327.3,0.30112]
[1735575094585,3.50891,3327.5,3326.9,4.9681]
[1735575094586,3.2078,3327.5,3326.9,4.9681]
[1735575094883,0.30115,3327.1,3326.9,0.30116]
[1735575095285,1.7456,3327.3,3326.8,1.414]
[1735575095579,1.7456,3327.3,3327.2,0.30113]
[1735575096094,3.2078,3327.5,3327.4,0.30111]
[1735575097380,3.2078,3327.9,3327.4,0.30111]
[1735575097581,1.7456,3328.1,3327.4,3.2078]
[1735575097787,2.95880603,3328.4,3328.3,0.30103]
[1735575098087,5.86636647,3328.5,3328.4,0.30102]
[1735575098590,3.50882,3328.5,3328.4,0.30102]
[1735575099089,3.50882,3328.5,3327.9,0.75268]
[1735575099390,3.50882,3328.5,3328.4,0.30102]
[1735575099690,3.2078,3328.5,3327.7,42.213]
[1735575099892,2.95880603,3328.1,3327.2,0.75283]
[1735575100194,0.30107,3327.9,3327.8,0.30108]
[1735575100394,2.95880603,3328.1,3327.7,0.30108]
[1735575100687,0.30108,3327.8,3327.6,0.30109]
[1735575101195,0.3011,3327.6,3327.5,0.3011]
[1735575101397,2.09649,3327.7,3327.6,0.3011]
[1735575101689,1.7954,3327.7,3327.6,0.3011]
[1735575101887,2.09649,3327.7,3327.2,1.413]
[1735575102086,1.7954,3327.7,3327.1,42.5384]
[1735575102291,4.75420603,3327.7,3327.3,0.30112]
[1735575102588,4.75420603,3327.7,3327.2,0.30113]
[1735575102785,0.30113,3327.3,3327.1,1.7384]
[1735575102987,3.2078,3327.6,3326.8,1.413]
[1735575103187,3.2078,3327.6,3327.0,0.30115]
[1735575103584,0.30114,3327.2,3327.0,0.30115]
[1735575103802,3.2078,3327.6,3326.8,1.413]
[1735575103997,0.30113,3327.3,3327.2,0.30113]
[1735575104797,4.75420603,3327.7,3326.9,0.75291]
[1735575104996,0.30112,3327.4,3327.3,0.30112]
[1735575105196,4.75420603,3327.7,3327.0,3.96068]
[1735575105391,4.75420603,3327.7,3327.0,3.2078]
[1735575105699,0.30114,3327.1,3327.0,3.50894]
[1735575105899,0.75275,3327.6,3327.0,3.50894]
[1735575105900,0.75277,3327.5,3327.0,0.30114]
[1735575106195,0.30114,3327.2,3327.1,0.30114]
[1735575106898,0.30112,3327.4,3327.2,0.30112]
[1735575107098,0.30112,3327.4,3327.3,0.30112]
[1735575107291,0.30113,3327.3,3327.2,0.30113]
[1735575107789,7.96200603,3327.7,3327.1,0.30114]
[1735575107790,0.30113,3327.2,3327.1,0.30114]
[1735575108494,0.30113,3327.2,3327.1,41.10114]
[1735575108793,7.96200603,3327.7,3327.1,40.8]
[1735575108991,0.30113,3327.3,3327.2,0.30113]
[1735575109490,7.96200603,3327.7,3327.1,40.8]
[1735575109695,0.30113,3327.2,3327.1,41.10114]
[1735575110392,5.50356328,3327.3,3326.8,0.30116]
[1735575110585,0.30116,3326.9,3326.8,0.30116]
[1735575110793,0.30118,3326.7,3326.6,3.50898]
[1735575110992,1.6502,3326.8,3326.6,44.0078]
[1735575111194,1.6502,3326.8,3326.7,0.30118]
[1735575112198,3.4269,3327.2,3327.1,0.30114]
[1735575113104,5.56534647,3327.7,3326.6,5.50356328]
[1735575113397,5.56534647,3327.7,3327.1,1.413]
[1735575113598,0.30111,3327.5,3327.3,0.30111]
[1735575113793,0.30111,3327.5,3327.4,0.30111]
[1735575113991,5.56534647,3327.7,3327.2,40.8]
[1735575114298,0.30111,3327.4,3327.3,0.30112]
[1735575114502,0.30112,3327.3,3327.2,40.8]
[1735575114693,0.30113,3327.2,3327.1,1.413]
[1735575114894,0.30116,3326.9,3326.8,0.30116]
[1735575115300,0.30116,3327.0,3326.9,0.30116]
[1735575116102,3.99806328,3327.3,3327.0,0.30114]
[1735575116295,0.30115,3327.1,3327.0,0.30114]
[1735575117190,0.30114,3327.2,3327.1,0.30114]
[1735575117995,0.30114,3327.2,3327.1,41.10114]
[1735575118396,0.30114,3327.2,3327.1,40.8]
[1735575119603,0.30114,3327.2,3327.1,41.10114]
[1735575119800,7.20586328,3327.3,3326.6,3.2078]
[1735575120004,0.30117,3326.8,3326.7,0.30117]
[1735575120205,7.20586328,3327.3,3326.6,3.2078]
[1735575120206,9.56340975,3327.3,3326.6,3.2078]
[1735575120398,9.56340975,3327.3,3326.7,40.8]
[1735575120706,0.30117,3326.8,3326.7,41.10118]
[1735575120905,0.30117,3326.8,3326.7,40.8]
[1735575121705,3.3754,3327.1,3326.9,0.30115]
[1735575121907,0.30116,3327.0,3326.9,0.30115]
[1735575122295,0.30117,3326.9,3326.8,0.30117]
[1735575122493,1.7352,3327.1,3326.7,40.8]
[1735575122806,5.57265971,3327.1,3327.0,0.30115]
[1735575123001,0.30115,3327.0,3326.9,0.30115]
[1735575123204,5.27151971,3327.1,3326.7,40.8]
[1735575123400,0.30115,3327.0,3326.9,0.30115]
[1735575123600,3.53631971,3327.1,3327.0,0.30115]
[1735575124402,2.36339055,3327.1,3327.0,0.30115]
[1735575124903,2.36339055,3327.1,3326.7,40.8]
[1735575125308,2.36339055,3327.1,3327.0,0.30115]
[1735575125809,0.30112,3327.3,3326.7,41.55293]
[1735575125810,2.66451055,3327.3,3326.7,41.55293]
[1735575126001,2.66451055,3327.3,3327.2,0.30113]
[1735575126802,0.30114,3327.2,3327.1,0.30114]
[1735575127210,0.30115,3327.1,3327.0,0.30115]
[1735575127705,0.30116,3327.0,3326.9,0.30116]
[1735575128804,2.66562494,3327.1,3327.0,0.30115]
[1735575129106,0.30117,3326.8,3326.7,40.8]
[1735575129407,0.30119,3326.6,3326.5,3.2078]
[1735575129796,0.3012,3326.5,3326.4,4.96539922]
[1735575130198,0.3012,3326.5,3326.4,4.66419922]
[1735575130410,0.3012,3326.5,3326.4,4.96539922]
[1735575130605,0.3012,3326.5,3326.4,0.3012]
[1735575130910,3.83750971,3326.6,3326.5,0.3012]
[1735575132006,0.30119,3326.6,3326.5,0.3012]
[1735575132710,0.3012,3326.5,3326.4,0.3012]
[1735575133413,5.21971971,3326.7,3326.1,4.8505]
[1735575133608,0.30124,3326.1,3326.0,0.30124]
[1735575133909,0.30124,3326.1,3326.0,0.30123]
[1735575134108,0.30123,3326.2,3326.1,0.30123]
[1735575134915,0.3012,3326.5,3326.4,0.3012]
[1735575135208,5.57215506,3326.6,3326.5,0.3012]
[1735575135209,8.2199755,3326.6,3326.5,0.3012]
[1735575135409,7.9187855,3326.6,3326.1,3.2078]
[1735575135613,0.30121,3326.4,3326.3,0.30121]
[1735575136007,7.9187855,3326.6,3326.0,40.8]
[1735575136210,2.36400692,3326.4,3326.1,0.30123]
[1735575136410,2.36400692,3326.4,3326.2,0.30122]
[1735575136809,0.30122,3326.3,3326.2,0.30122]
[1735575137310,2.36400692,3326.4,3326.2,0.30122]
[1735575137514,3.54601038,3326.4,3326.3,0.30121]
[1735575137707,3.84721038,3326.4,3326.3,0.30121]
[1735575138409,3.84721038,3326.4,3326.3,41.10121]
[1735575139009,0.3012,3326.4,3326.3,41.10121]
[1735575139316,2.36308419,3326.5,3326.4,0.3012]
[1735575139615,2.66428419,3326.5,3326.4,0.3012]
[1735575140014,0.3012,3326.5,3326.4,0.3012]
[1735575140213,5.57088419,3326.6,3326.3,40.8]
[1735575140512,5.57088419,3326.6,3326.5,0.3012]
[1735575140911,2.36308419,3326.6,3326.5,0.3012]
[1735575141615,2.36308419,3326.7,3326.4,4.8606]
[1735575141919,2.36308419,3326.7,3326.6,0.30119]
[1735575142217,2.36308419,3326.7,3326.6,3.50899]
[1735575143515,0.30117,3326.8,3326.6,3.2078]
[1735575143711,3.2078,3327.0,3326.4,4.8606]
[1735575144023,0.3012,3326.5,3326.4,1.411]
[1735575144314,0.3012,3326.5,3326.4,0.3012]
[1735575144910,0.30121,3326.4,3326.3,0.30121]
[1735575145410,0.30125,3325.9,3325.8,3.50906]
[1735575145605,0.30125,3326.0,3325.9,0.30124]
[1735575148003,2.36308419,3326.1,3325.5,8.53080922]
[1735575148213,0.30127,3325.9,3325.8,0.30125]
[1735575148615,2.36308419,3326.1,3325.5,8.53080922]
[1735575148616,2.36308419,3326.1,3325.5,7.77759922]
[1735575148814,2.36308419,3326.1,3325.5,4.66419922]
[1735575148815,2.59704328,3325.6,3325.5,4.66419922]
[1735575149019,0.30128,3325.6,3325.5,4.96548922]
[1735575149216,1.7368,3325.7,3325.5,4.66419922]
[1735575149409,2.29576328,3325.9,3325.5,4.66419922]
[1735575149610,2.29576328,3325.9,3325.3,40.8]
[1735575149611,4.65884747,3325.9,3325.3,40.8]
[1735575149918,0.30129,3325.5,3325.4,0.30129]
[1735575150114,0.3013,3325.4,3325.3,40.8]
[1735575152313,5.57088419,3325.8,3325.4,0.3013]
[1735575152522,2.36308419,3325.8,3325.7,0.30127]
[1735575152722,4.7109855,3325.9,3325.8,0.30126]
[1735575152923,5.0122355,3325.9,3325.7,0.30126]
[1735575153726,0.30126,3325.8,3325.7,0.30126]
[1735575153922,5.0122455,3325.9,3325.7,0.30126]
[1735575154218,2.3624416,3326.1,3325.5,1.7643]
[1735575154427,2.3624416,3326.1,3326.0,0.30124]
[1735575155515,2.3624416,3326.3,3326.2,0.30122]
[1735575155715,2.3624416,3326.3,3326.2,5.80478328]
[1735575156120,2.3624416,3326.3,3326.2,46.60478328]
[1735575156318,3.5436624,3326.4,3326.2,51.30356328]
[1735575156519,3.5436624,3326.4,3326.3,0.30121]
[1735575157125,0.30116,3327.0,3326.9,0.30115]
[1735575157430,3.5436624,3327.3,3327.2,0.30113]
[1735575158634,1.6376,3327.5,3327.4,0.30111]
[1735575159023,3.2078,3327.7,3327.6,0.3011]
[1735575159223,3.2078,3327.7,3327.1,3.04861328]
[1735575159628,3.2078,3327.7,3327.6,0.3011]
[1735575159629,3.50889,3327.7,3327.6,0.3011]
[1735575160322,3.2078,3327.7,3327.1,3.04861328]
[1735575160625,3.2078,3327.7,3327.1,0.75285]
[1735575160826,3.2078,3327.7,3327.6,0.3011]
[1735575160827,3.50889,3327.7,3327.6,0.3011]
[1735575161130,3.2078,3327.7,3327.6,0.3011]
[1735575161822,3.50889,3327.7,3327.5,0.3011]
[1735575162428,0.30109,3327.7,3327.5,0.3011]
[1735575163425,1.6549,3327.8,3327.7,0.30109]
[1735575163632,1.6549,3327.8,3327.1,3.04861328]
[1735575163825,0.30109,3327.7,3327.5,0.3011]
[1735575164131,0.30109,3327.7,3327.6,0.3011]
[1735575164430,0.30109,3327.7,3327.5,0.3011]
[1735575165026,1.6549,3327.8,3326.9,3.2078]
[1735575165228,0.30114,3327.1,3327.0,0.30115]
[1735575165429,3.2078,3327.3,3326.9,0.30116]
[1735575165730,2.7229,3327.0,3326.9,0.30116]
[1735575166928,1.3143,3327.0,3326.9,0.30116]
[1735575167826,1.3143,3327.0,3326.8,0.30116]
[1735575168022,2.7229,3327.0,3326.5,4.6168]
[1735575168234,0.30117,3326.8,3326.7,0.30117]
[1735575168431,0.30118,3326.7,3326.6,0.30118]
[1735575168735,2.7229,3327.0,3326.6,0.30119]
[1735575168736,0.30117,3326.8,3326.6,0.30119]
[1735575169035,0.30113,3327.3,3327.2,0.30113]
[1735575169533,4.8650624,3327.6,3327.2,0.30113]
[1735575169534,2.29576328,3327.5,3327.2,0.30113]
[1735575169734,2.29576328,3327.5,3326.6,0.75297]
[1735575170037,0.30111,3327.4,3327.3,0.30112]
[1735575170728,2.29576328,3327.5,3327.1,0.30113]
[1735575170932,0.30114,3327.1,3327.0,0.30115]
[1735575171134,5.50356328,3327.5,3327.0,0.30114]
[1735575171325,0.30114,3327.1,3327.0,0.30114]
[1735575171526,0.30117,3326.8,3326.7,41.10117]
[1735575171931,0.30116,3326.9,3326.8,0.30116]
[1735575172135,1.3015,3327.0,3326.7,40.8]
[1735575172332,1.3015,3327.0,3326.9,0.30116]
[1735575172636,1.60265,3327.0,3326.9,0.30116]
[1735575172934,1.3015,3327.0,3326.7,40.8]
[1735575173132,4.5093,3327.0,3326.7,40.8]
[1735575173343,1.67896,3326.9,3326.7,40.8]
[1735575173534,1.3778,3326.9,3326.8,0.30117]
[1735575174038,1.67896,3326.9,3326.8,0.30117]
[1735575174238,3.8447724,3327.5,3326.9,0.30116]